Workbook

Sheet TERMEN
B1: ORARUL CURSULUI MEU
B2: SEMESTRUL I
C3: ORA DE ÎNCEPUT | D3: INTERVAL DE TIMP | F3: AN
C4: 09:00:00 | D4: 60 | E4: (În minute)
B5: ORA | C5: L | D5: MA | E5: MIE | F5: JO | G5: VIN | H5: SÂ | I5: D
B6: =OraÎnceput+TIME(0,(ROW(A1)-1)*IntervalTimp,0) -> 09:00:00 | C6: Mic dejun | D6: Mic dejun | E6: Mic dejun | F6: Mic dejun | G6: Mic dejun
B7: 10:00:00 | C7: Afaceri: Prelegere Corp B, Sala 256
B8: 11:00:00 | F8: Fizică: Laborator Corp J, Sala 309
B9: 12:00:00
B10: 13:00:00
B11: 14:00:00
B12: 15:00:00
B13: 16:00:00
B14: 17:00:00
B15: 18:00:00
B16: 19:00:00
B17: 20:00:00
B18: 21:00:00
B19: 22:00:00
B20: 23:00:00
B21: 1
B22: 1.041666667
B23: 1.083333333
B24: 1.125
B25: 1.166666667
B26: 1.208333333
B27: 1.25
B28: 1.291666667
B29: 1.333333333

Sheet CREDITE
B1: FACULTATE
B2: PLANIFICATOR DE CREDITE
B3: Studii absolvite | C3: =An -> AN
B4: PROGRES GENERAL | D4: PROGRES GENERAL
B5: =AVERAGE(Cursuri[NOTA]) -> 3.5 | C5: =IFERROR(TEXT(AVERAGEIF(Cursuri[TERMINATE],"Da",Cursuri[NOTA]),"0,00"),"0,00")&" GPA curent" -> 3,50 GPA curent | D5: =COUNTIF(Cursuri[TERMINATE],"Da")/COUNTA(Cursuri[TITLU CURS]) -> 0.6666666667 | E5: =TEXT(COUNTIF(Cursuri[TERMINATE],"Da")/COUNTA(Cursuri[TITLU CURS]),"0%")&" finalizat" -> 67% finalizat
B6: Notă: Următoarea situație a creditelor este completată automat cu intrările dvs. din tabelul Cursuri facultate de mai jos
B7: CERINȚĂ | C7: TOTAL CREDITE | D7: OBȚINUTE | E7: NECESARE
B8: Specializare principală | C8: =IF(SUMIF(Cursuri[CERINȚĂ],CREDITE!$B8,Cursuri[CREDITE])=0,"0",SUMIF(Cursuri[CERINȚĂ],CREDITE!$B8,Cursuri[CREDITE])) -> 4 | D8: =SUMIFS(Cursuri[CREDITE],Cursuri[CERINȚĂ],CREDITE!$B8,Cursuri[TERMINATE],"Da") -> 4 | E8: =SUMIF(Cursuri[CERINȚĂ],CREDITE!$B8,Cursuri[CREDITE])-SUMIFS(Cursuri[CREDITE],Cursuri[CERINȚĂ],CREDITE!$B8,Cursuri[TERMINATE],"Da") -> 0
B9: Specializare secundară | C9: =IF(SUMIF(Cursuri[CERINȚĂ],CREDITE!$B9,Cursuri[CREDITE])=0,"0",SUMIF(Cursuri[CERINȚĂ],CREDITE!$B9,Cursuri[CREDITE])) -> 3 | D9: =SUMIFS(Cursuri[CREDITE],Cursuri[CERINȚĂ],CREDITE!$B9,Cursuri[TERMINATE],"Da") -> 0 | E9: =SUMIF(Cursuri[CERINȚĂ],CREDITE!$B9,Cursuri[CREDITE])-SUMIFS(Cursuri[CREDITE],Cursuri[CERINȚĂ],CREDITE!$B9,Cursuri[TERMINATE],"Da") -> 3
B10: Curs opțional | C10: =IF(SUMIF(Cursuri[CERINȚĂ],CREDITE!$B10,Cursuri[CREDITE])=0,"0",SUMIF(Cursuri[CERINȚĂ],CREDITE!$B10,Cursuri[CREDITE])) -> 2 | D10: =SUMIFS(Cursuri[CREDITE],Cursuri[CERINȚĂ],CREDITE!$B10,Cursuri[TERMINATE],"Da") -> 2 | E10: =SUMIF(Cursuri[CERINȚĂ],CREDITE!$B10,Cursuri[CREDITE])-SUMIFS(Cursuri[CREDITE],Cursuri[CERINȚĂ],CREDITE!$B10,Cursuri[TERMINATE],"Da") -> 0
B11: Studiu general | C11: =IF(SUMIF(Cursuri[CERINȚĂ],CREDITE!$B11,Cursuri[CREDITE])=0,"0",SUMIF(Cursuri[CERINȚĂ],CREDITE!$B11,Cursuri[CREDITE])) -> 0 | D11: =SUMIFS(Cursuri[CREDITE],Cursuri[CERINȚĂ],CREDITE!$B11,Cursuri[TERMINATE],"Da") -> 0 | E11: =SUMIF(Cursuri[CERINȚĂ],CREDITE!$B11,Cursuri[CREDITE])-SUMIFS(Cursuri[CREDITE],Cursuri[CERINȚĂ],CREDITE!$B11,Cursuri[TERMINATE],"Da") -> 0
B12: Total | C12: =SUBTOTAL(109,CREDITE!$C$8:$C$11) -> 9 | D12: =SUBTOTAL(109,CREDITE!$D$8:$D$11) -> 6 | E12: =SUBTOTAL(109,CREDITE!$E$8:$E$11) -> 3
B13: Cursuri
B14: TITLU CURS | C14: CURS NR. | D14: CERINȚĂ | E14: CREDITE | F14: TERMINATE | G14: NOTA | H14: SEMESTRU
B15: Curs 1 | C15: Număr | D15: Specializare principală | E15: 4 | F15: Da | G15: 4.0 | H15: Semestrul 1
B16: Curs 2 | C16: Număr | D16: Specializare secundară | E16: 3 | F16: Nu | H16: Semestrul 1
B17: Curs 3 | C17: Număr | D17: Curs opțional | E17: 2 | F17: Da | G17: 3.0 | H17: Semestrul 1

Sheet BUGET
B1: =Facultatea -> FACULTATE
B2: MONITOR BUGET
B3: Bugetul meu | C3: =An -> AN
B4: PROCENT DIN VENIT CHELTUIT
B5: =CHELTUIELI_LUNARE_NETE/VENIT_LUNAR_NET -> 75%
B6: =B5 -> 0.7454545455
B7: VENIT LUNAR NET | C7: CHELTUIELI LUNARE NETE | D7: SOLD
B8: =C10 -> 2,750 lei | C8: ='CHELTUIELI LUNARE NETE'!C4+'CHELTUIELI SEMESTRIALE'!D4 -> 2,050 lei | D8: =VENIT_LUNAR_NET-CHELTUIELI_LUNARE_NETE -> 700 lei
B9: Luni în semestru | C9: 4
B10: VENIT LUNAR | C10: =SUM(VenitLunar[SUMĂ]) -> 2,750 lei
B11: ELEMENT | C11: SUMĂ
B12: Venit fix | C12: 1,500 lei
B13: Ajutor financiar | C13: 500 lei
B14: Împrumuturi | C14: 500 lei
B15: Alte venituri | C15: 250 lei

Sheet CHELTUIELI LUNARE NETE
B1: =Facultatea -> FACULTATE
B2: MONITOR BUGET
B3: Cheltuieli lunare | C3: =An -> AN
B4: CHELTUIELI LUNARE | C4: =SUM(CheltuieliLunare[SUMĂ]) -> 1,675 lei
B5: ELEMENT | C5: SUMĂ
B6: Chirie | C6: 300 lei
B7: Utilități | C7: 50 lei
B8: Telefon mobil | C8: 75 lei
B9: Alimente | C9: 250 lei
B10: Cheltuielile auto | C10: 50 lei
B11: Credite pentru studenți | C11: 500 lei
B12: Carduri de credit | C12: 275 lei
B13: Asigurare | C13: 125 lei
B14: Distracție | C14: 50 lei
B15: Diverse | C15: 0 lei

Sheet CHELTUIELI SEMESTRIALE
B1: =Facultatea -> FACULTATE
B2: MONITOR BUGET
B3: Cheltuieli semestriale | C3: =An -> AN
B4: CHELTUIELI SEMESTRIALE (Total/lună) | C4: =SUM(CheltuieliSemestriale[SUMĂ]) -> 1,500 lei | D4: =SUM(CheltuieliSemestriale[PE LUNĂ]) -> 375 lei
B5: ELEMENT | C5: SUMĂ | D5: PE LUNĂ
B6: Taxe școlare | C6: 750 lei | D6: =CheltuieliSemestriale[[#This Row],[SUMĂ]]/Luni_în_semestru -> 188 lei
B7: Taxe de laborator | C7: 250 lei | D7: =CheltuieliSemestriale[[#This Row],[SUMĂ]]/Luni_în_semestru -> 63 lei
B8: Cărți | C8: 500 lei | D8: =CheltuieliSemestriale[[#This Row],[SUMĂ]]/Luni_în_semestru -> 125 lei
B9: Depozite | C9: 0 lei | D9: =CheltuieliSemestriale[[#This Row],[SUMĂ]]/Luni_în_semestru -> 0 lei
B10: Transport | C10: 0 lei | D10: =CheltuieliSemestriale[[#This Row],[SUMĂ]]/Luni_în_semestru -> 0 lei
B11: Alte taxe | C11: 0 lei | D11: =CheltuieliSemestriale[[#This Row],[SUMĂ]]/Luni_în_semestru -> 0 lei

Sheet CĂRȚI
B1: =Facultatea -> FACULTATE
B2: MONITOR CĂRȚI
B3: Listă de cărți
B4: TITLU | C4: AUTOR | D4: CURS | E4: UNDE SE GĂSEȘTE? | F4: ISBN | G4: NOTE
B5: Titlul cărții | C5: Autor | D5: Curs | E5: Locație | F5: Număr
B6: Titlul cărții | C6: Autor | D6: Curs | E6: Locație | F6: Număr
B7: Titlul cărții | C7: Autor | D7: Curs | E7: Locație | F7: Număr
